[Event "Late-Titled-Tuesday-Blitz-July-09-2024"]
[Site "Chess.com"]
[Date "2024.07.09"]
[Round "1"]
[White "AmbartsumianTyhran2012"]
[Black "ritanovikova"]
[Result "1-0"]
[WhiteElo "2565"]
[BlackElo "2134"]
[TimeControl "180+1"]
[EndTime "14:07:57 PDT"]
[Termination "AmbartsumianTyhran2012 won on time"]

1. e4 {[%clk 0:02:59.7]} 1... e5 {[%clk 0:02:59]} 2. Nf3 {[%clk 0:02:56.8]} 2...
Nf6 {[%clk 0:02:59.1]} 3. Nxe5 {[%clk 0:02:53.7]} 3... d6 {[%clk 0:02:59.1]} 4.
Nf3 {[%clk 0:02:52.9]} 4... Nxe4 {[%clk 0:02:59.4]} 5. Nc3 {[%clk 0:02:52.6]}
5... Nxc3 {[%clk 0:02:58.8]} 6. dxc3 {[%clk 0:02:53.5]} 6... Bf5 {[%clk
0:02:58.7]} 7. Be3 {[%clk 0:02:51.2]} 7... Nd7 {[%clk 0:02:53.9]} 8. Qd2 {[%clk
0:02:50.5]} 8... Nf6 {[%clk 0:02:46.3]} 9. O-O-O {[%clk 0:02:40.5]} 9... Qd7
{[%clk 0:02:45.1]} 10. Bd3 {[%clk 0:02:37.5]} 10... Be7 {[%clk 0:02:23.5]} 11.
Kb1 {[%clk 0:02:36.9]} 11... a6 {[%clk 0:01:56.6]} 12. Rhe1 {[%clk 0:02:33.5]}
12... O-O-O {[%clk 0:01:44.7]} 13. h3 {[%clk 0:02:30.7]} 13... Rhe8 {[%clk
0:01:40.3]} 14. c4 {[%clk 0:02:25.9]} 14... Kb8 {[%clk 0:01:32.9]} 15. Nd4
{[%clk 0:02:21.8]} 15... Bg6 {[%clk 0:01:21.2]} 16. Nb3 {[%clk 0:02:19.1]} 16...
Ne4 {[%clk 0:01:16.6]} 17. Qa5 {[%clk 0:02:14.4]} 17... Qc6 {[%clk 0:01:09.4]}
18. f3 {[%clk 0:01:58.7]} 18... Nc5 {[%clk 0:01:07.5]} 19. Bxg6 {[%clk
0:01:16.3]} 19... Nxb3 {[%clk 0:00:59.6]} 20. axb3 {[%clk 0:01:09.6]} 20... hxg6
{[%clk 0:00:58.5]} 21. Qd5 {[%clk 0:01:03.6]} 21... Bh4 {[%clk 0:00:49.3]} 22.
Qxc6 {[%clk 0:00:59.5]} 22... bxc6 {[%clk 0:00:50.2]} 23. Re2 {[%clk 0:01:00.1]}
23... Re6 {[%clk 0:00:47.6]} 24. Rd4 {[%clk 0:00:50.6]} 24... g5 {[%clk
0:00:35.8]} 25. Re4 {[%clk 0:00:46.1]} 25... Rxe4 {[%clk 0:00:33.2]} 26. fxe4
{[%clk 0:00:47]} 26... Re8 {[%clk 0:00:33.1]} 27. b4 {[%clk 0:00:36]} 27... Kb7
{[%clk 0:00:30.8]} 28. Bd4 {[%clk 0:00:34.9]} 28... g6 {[%clk 0:00:26.8]} 29.
Kc1 {[%clk 0:00:27.2]} 29... f5 {[%clk 0:00:25.7]} 30. e5 {[%clk 0:00:27.4]}
30... dxe5 {[%clk 0:00:16.7]} 31. Rxe5 {[%clk 0:00:24.5]} 31... Rxe5 {[%clk
0:00:16]} 32. Bxe5 {[%clk 0:00:23.9]} 32... g4 {[%clk 0:00:12.8]} 33. hxg4
{[%clk 0:00:23.2]} 33... fxg4 {[%clk 0:00:13.7]} 34. Kd2 {[%clk 0:00:22.9]}
34... Kc8 {[%clk 0:00:12.9]} 35. Ke3 {[%clk 0:00:21.9]} 35... Bg5+ {[%clk
0:00:12.6]} 36. Ke4 {[%clk 0:00:20.8]} 36... Kd7 {[%clk 0:00:11.9]} 37. b3
{[%clk 0:00:19.8]} 37... Be7 {[%clk 0:00:09.8]} 38. Bc3 {[%clk 0:00:17.1]} 38...
Ke6 {[%clk 0:00:08.7]} 39. Kf4 {[%clk 0:00:16.6]} 39... Bd6+ {[%clk 0:00:05]}
40. Kxg4 {[%clk 0:00:16.6]} 40... Be7 {[%clk 0:00:01.8]} 41. Kf4 {[%clk
0:00:15.9]} 41... Bd6+ {[%clk 0:00:01.9]} 42. Kg5 {[%clk 0:00:14.9]} 42... Kf7
{[%clk 0:00:02.5]} 43. Kg4 {[%clk 0:00:14.6]} 43... Be7 {[%clk 0:00:03]} 44. c5
{[%clk 0:00:12.4]} 44... Bd8 {[%clk 0:00:01.7]} 45. Kf4 {[%clk 0:00:10.9]} 45...
Ke6 {[%clk 0:00:01.9]} 46. Ke4 {[%clk 0:00:10.8]} 46... g5 {[%clk 0:00:01.4]}
47. Be5 {[%clk 0:00:11.3]} 1-0

[Event "Late-Titled-Tuesday-Blitz-July-09-2024"]
[Site "Chess.com"]
[Date "2024.07.09"]
[Round "1"]
[White "Mattheii"]
[Black "MikaelyanArman"]
[Result "1/2-1/2"]
[WhiteElo "2482"]
[BlackElo "2894"]
[TimeControl "180+1"]
[EndTime "14:08:00 PDT"]
[Termination "Game drawn - insufficient material"]

1. d4 {[%clk 0:03:00.9]} 1... c6 {[%clk 0:02:55.4]} 2. c4 {[%clk 0:03:00.4]}
2... d6 {[%clk 0:02:56]} 3. Nc3 {[%clk 0:02:59.9]} 3... Nf6 {[%clk 0:02:56.6]}
4. e4 {[%clk 0:02:59.9]} 4... Bd7 {[%clk 0:02:57.1]} 5. e5 {[%clk 0:02:48.6]}
5... dxe5 {[%clk 0:02:55.8]} 6. dxe5 {[%clk 0:02:49.5]} 6... Ng8 {[%clk
0:02:46.7]} 7. Nf3 {[%clk 0:02:47]} 7... Na6 {[%clk 0:02:46.3]} 8. Be2 {[%clk
0:02:44.3]} 8... Bg4 {[%clk 0:02:41.5]} 9. O-O {[%clk 0:02:33.9]} 9... Qxd1
{[%clk 0:02:40.8]} 10. Rxd1 {[%clk 0:02:34.8]} 10... e6 {[%clk 0:02:41]} 11. Ne4
{[%clk 0:02:24.6]} 11... Nc5 {[%clk 0:02:38.7]} 12. Nd6+ {[%clk 0:02:02.2]}
12... Bxd6 {[%clk 0:02:38.5]} 13. exd6 {[%clk 0:02:03.1]} 13... Nf6 {[%clk
0:02:38.2]} 14. Be3 {[%clk 0:01:47.8]} 14... Na4 {[%clk 0:02:33.3]} 15. Bd4
{[%clk 0:01:27.2]} 15... c5 {[%clk 0:02:33.4]} 16. Be5 {[%clk 0:01:22.6]} 16...
Nd7 {[%clk 0:02:33.6]} 17. Bxg7 {[%clk 0:01:16.9]} 17... Rg8 {[%clk 0:02:33.9]}
18. Bh6 {[%clk 0:01:10.5]} 18... O-O-O {[%clk 0:02:29]} 19. Rd2 {[%clk
0:01:03.4]} 19... Bxf3 {[%clk 0:02:19.7]} 20. Bxf3 {[%clk 0:01:00.6]} 20... Ne5
{[%clk 0:02:20.2]} 21. Be2 {[%clk 0:00:59.2]} 21... Nc6 {[%clk 0:02:18.6]} 22.
Be3 {[%clk 0:00:53.4]} 22... Ne5 {[%clk 0:01:29.6]} 23. Rc1 {[%clk 0:00:44.4]}
23... Nd7 {[%clk 0:01:26.4]} 24. b3 {[%clk 0:00:41.1]} 24... Nab6 {[%clk
0:01:26.8]} 25. Rcd1 {[%clk 0:00:18.7]} 25... e5 {[%clk 0:01:22.6]} 26. g4
{[%clk 0:00:14.3]} 26... f5 {[%clk 0:01:22.7]} 27. f3 {[%clk 0:00:11.8]} 27...
Nf6 {[%clk 0:01:21.4]} 28. h3 {[%clk 0:00:11.3]} 28... Nbd7 {[%clk 0:01:21.3]}
29. Kf1 {[%clk 0:00:10.3]} 29... e4 {[%clk 0:01:22]} 30. gxf5 {[%clk 0:00:09.1]}
30... Ne5 {[%clk 0:01:20.9]} 31. Bf4 {[%clk 0:00:04.7]} 31... Nxf3 {[%clk
0:01:19.7]} 32. Bxf3 {[%clk 0:00:05]} 32... exf3 {[%clk 0:01:20.6]} 33. Rf2
{[%clk 0:00:04.8]} 33... Rde8 {[%clk 0:01:12.8]} 34. Rxf3 {[%clk 0:00:04.6]}
34... Kd7 {[%clk 0:01:13.5]} 35. Re1 {[%clk 0:00:03.2]} 35... Rg1+ {[%clk
0:00:30.6]} 36. Kxg1 {[%clk 0:00:03.2]} 36... Rxe1+ {[%clk 0:00:31.5]} 37. Kf2
{[%clk 0:00:03.7]} 37... Ra1 {[%clk 0:00:31.7]} 38. Be5 {[%clk 0:00:03]} 38...
Rxa2+ {[%clk 0:00:32]} 39. Kg3 {[%clk 0:00:02.5]} 39... Ne4+ {[%clk 0:00:18.4]}
40. Kf4 {[%clk 0:00:03]} 40... Re2 {[%clk 0:00:19.3]} 41. Re3 {[%clk 0:00:02.7]}
41... Rxe3 {[%clk 0:00:08.2]} 42. Kxe3 {[%clk 0:00:03.6]} 42... Nxd6 {[%clk
0:00:08.9]} 43. Bxd6 {[%clk 0:00:04]} 43... Kxd6 {[%clk 0:00:09.8]} 44. Kf4
{[%clk 0:00:04.6]} 44... a6 {[%clk 0:00:04.7]} 45. Kg5 {[%clk 0:00:03.7]} 45...
Ke7 {[%clk 0:00:05.2]} 46. f6+ {[%clk 0:00:02.6]} 46... Kf7 {[%clk 0:00:05.8]}
47. Kf5 {[%clk 0:00:03.5]} 47... b5 {[%clk 0:00:06.4]} 48. cxb5 {[%clk
0:00:03.1]} 48... axb5 {[%clk 0:00:06.8]} 49. Ke5 {[%clk 0:00:03.7]} 49... c4
{[%clk 0:00:06.9]} 50. bxc4 {[%clk 0:00:04.5]} 50... bxc4 {[%clk 0:00:07.8]} 51.
Kd4 {[%clk 0:00:05.2]} 51... Kxf6 {[%clk 0:00:08.7]} 52. Kxc4 {[%clk 0:00:05.9]}
52... Ke5 {[%clk 0:00:09.6]} 53. Kd3 {[%clk 0:00:06.5]} 53... Kf4 {[%clk
0:00:10.3]} 54. Ke2 {[%clk 0:00:07.4]} 54... Kg3 {[%clk 0:00:11]} 55. Kf1 {[%clk
0:00:08.2]} 55... Kh2 {[%clk 0:00:11.7]} 56. Kf2 {[%clk 0:00:08.5]} 56... h5
{[%clk 0:00:11.7]} 57. Kf1 {[%clk 0:00:08.9]} 57... Kxh3 {[%clk 0:00:12.3]} 58.
Kg1 {[%clk 0:00:09.2]} 58... Kg3 {[%clk 0:00:13.2]} 59. Kh1 {[%clk 0:00:10.1]}
59... h4 {[%clk 0:00:13.9]} 60. Kg1 {[%clk 0:00:10.8]} 60... Kh3 {[%clk
0:00:14.8]} 61. Kh1 {[%clk 0:00:11.7]} 61... Kg4 {[%clk 0:00:15.7]} 62. Kg1
{[%clk 0:00:12.6]} 62... Kf3 {[%clk 0:00:16.6]} 63. Kh1 {[%clk 0:00:13.5]} 63...
Kg3 {[%clk 0:00:17.4]} 64. Kg1 {[%clk 0:00:14]} 64... h3 {[%clk 0:00:18.3]} 65.
Kh1 {[%clk 0:00:14.9]} 65... Kg4 {[%clk 0:00:18.8]} 66. Kg1 {[%clk 0:00:15.8]}
66... h2+ {[%clk 0:00:19.6]} 67. Kh1 {[%clk 0:00:16.7]} 67... Kf5 {[%clk
0:00:19.7]} 68. Kxh2 {[%clk 0:00:17.6]} 1/2-1/2

[Event "Late-Titled-Tuesday-Blitz-July-09-2024"]
[Site "Chess.com"]
[Date "2024.07.09"]
[Round "1"]
[White "annasargsyan_m"]
[Black "glebus008"]
[Result "1/2-1/2"]
[WhiteElo "2690"]
[BlackElo "2390"]
[TimeControl "180+1"]
[EndTime "14:08:01 PDT"]
[Termination "Game drawn - insufficient material"]

1. d4 {[%clk 0:03:00.9]} 1... d5 {[%clk 0:02:55.4]} 2. c4 {[%clk 0:03:00]} 2...
e6 {[%clk 0:02:55.5]} 3. Nc3 {[%clk 0:02:59.3]} 3... c5 {[%clk 0:02:55.7]} 4.
cxd5 {[%clk 0:02:58.2]} 4... cxd4 {[%clk 0:02:54.8]} 5. Qxd4 {[%clk 0:02:59.1]}
5... Nc6 {[%clk 0:02:53.3]} 6. Qd2 {[%clk 0:02:50.4]} 6... exd5 {[%clk
0:02:53.9]} 7. Qxd5 {[%clk 0:02:47.1]} 7... Bd6 {[%clk 0:02:53.1]} 8. Bg5 {[%clk
0:02:39]} 8... f6 {[%clk 0:02:17.9]} 9. O-O-O {[%clk 0:02:29.6]} 9... fxg5
{[%clk 0:02:00.8]} 10. Qxd6 {[%clk 0:02:29.3]} 10... Qxd6 {[%clk 0:02:00]} 11.
Rxd6 {[%clk 0:02:30.2]} 11... Nf6 {[%clk 0:01:45.2]} 12. Nf3 {[%clk 0:02:22.5]}
12... g4 {[%clk 0:01:43.1]} 13. Nd2 {[%clk 0:01:56.3]} 13... Ke7 {[%clk
0:01:43]} 14. Rd3 {[%clk 0:01:54.3]} 14... Bf5 {[%clk 0:01:34.2]} 15. e4 {[%clk
0:01:50.9]} 15... Be6 {[%clk 0:01:17.3]} 16. a3 {[%clk 0:01:30.5]} 16... Rhd8
{[%clk 0:01:11.6]} 17. f4 {[%clk 0:01:27.2]} 17... gxf3 {[%clk 0:01:09]} 18.
gxf3 {[%clk 0:01:26.7]} 18... Ne5 {[%clk 0:01:05.5]} 19. Rxd8 {[%clk 0:01:25.6]}
19... Rxd8 {[%clk 0:01:06.4]} 20. f4 {[%clk 0:01:24.1]} 20... Nd3+ {[%clk
0:00:50.8]} 21. Bxd3 {[%clk 0:01:22.5]} 21... Rxd3 {[%clk 0:00:51.7]} 22. f5
{[%clk 0:01:20.2]} 22... Bf7 {[%clk 0:00:46.1]} 23. Rg1 {[%clk 0:01:19.1]} 23...
Kf8 {[%clk 0:00:42.8]} 24. e5 {[%clk 0:01:17.2]} 24... Nd5 {[%clk 0:00:38.9]}
25. Kc2 {[%clk 0:00:58]} 25... Rh3 {[%clk 0:00:37.1]} 26. e6 {[%clk 0:00:33]}
26... Ne3+ {[%clk 0:00:36.4]} 27. Kc1 {[%clk 0:00:32.2]} 27... Bh5 {[%clk
0:00:32.5]} 28. e7+ {[%clk 0:00:13]} 28... Kxe7 {[%clk 0:00:29.4]} 29. Rxg7+
{[%clk 0:00:13.3]} 29... Kf6 {[%clk 0:00:27.1]} 30. Rxh7 {[%clk 0:00:13.5]}
30... Rxh2 {[%clk 0:00:24.3]} 31. b4 {[%clk 0:00:13.8]} 31... Kxf5 {[%clk
0:00:20.5]} 32. Rxb7 {[%clk 0:00:13.9]} 32... Rh1+ {[%clk 0:00:16.7]} 33. Kb2
{[%clk 0:00:14.1]} 33... Rh2 {[%clk 0:00:17.6]} 34. Nb1 {[%clk 0:00:14.3]} 34...
Nc4+ {[%clk 0:00:14.5]} 35. Kc3 {[%clk 0:00:14.8]} 35... Be2 {[%clk 0:00:10.6]}
36. Nxc4 {[%clk 0:00:13.9]} 36... Rh3+ {[%clk 0:00:06.9]} 37. Kd2 {[%clk
0:00:09.8]} 37... Bxc4 {[%clk 0:00:06.7]} 38. Rxa7 {[%clk 0:00:10.3]} 38... Rh2+
{[%clk 0:00:06.3]} 39. Kc3 {[%clk 0:00:10.5]} 39... Be6 {[%clk 0:00:07]} 40. Nd2
{[%clk 0:00:10.6]} 40... Rh3+ {[%clk 0:00:07.6]} 41. Kd4 {[%clk 0:00:09.9]}
41... Rh4+ {[%clk 0:00:08.2]} 42. Kc5 {[%clk 0:00:10]} 42... Rh2 {[%clk
0:00:07.7]} 43. Nb1 {[%clk 0:00:08.2]} 43... Rc2+ {[%clk 0:00:08.6]} 44. Kb6
{[%clk 0:00:06.8]} 44... Ba2 {[%clk 0:00:08.1]} 45. Rc7 {[%clk 0:00:04.8]} 45...
Bxb1 {[%clk 0:00:06.5]} 46. b5 {[%clk 0:00:05]} 46... Ke6 {[%clk 0:00:04.3]} 47.
Rxc2 {[%clk 0:00:03]} 47... Bxc2 {[%clk 0:00:04.1]} 48. Kc7 {[%clk 0:00:03.9]}
48... Be4 {[%clk 0:00:02.1]} 49. b6 {[%clk 0:00:04.8]} 49... Kd5 {[%clk
0:00:02.3]} 50. a4 {[%clk 0:00:05.3]} 50... Kc5 {[%clk 0:00:03.2]} 51. a5 {[%clk
0:00:05.6]} 51... Kb5 {[%clk 0:00:03.6]} 52. b7 {[%clk 0:00:04]} 52... Bxb7
{[%clk 0:00:03.2]} 53. Kxb7 {[%clk 0:00:04.9]} 53... Kxa5 {[%clk 0:00:04.1]}
1/2-1/2

[Event "Late-Titled-Tuesday-Blitz-July-09-2024"]
[Site "Chess.com"]
[Date "2024.07.09"]
[Round "1"]
[White "Oleg_Papayan"]
[Black "aexmi"]
[Result "1-0"]
[WhiteElo "2605"]
[BlackElo "2250"]
[TimeControl "180+1"]
[EndTime "14:08:04 PDT"]
[Termination "Oleg_Papayan won by resignation"]

1. d4 {[%clk 0:02:59.9]} 1... Nf6 {[%clk 0:02:57.5]} 2. Nc3 {[%clk 0:02:59.2]}
2... d5 {[%clk 0:02:54.4]} 3. Bf4 {[%clk 0:02:58.9]} 3... a6 {[%clk 0:02:50.9]}
4. e3 {[%clk 0:02:56.1]} 4... e6 {[%clk 0:02:47.9]} 5. a3 {[%clk 0:02:54.2]}
5... Bd6 {[%clk 0:02:35.7]} 6. Nf3 {[%clk 0:02:53.3]} 6... O-O {[%clk
0:02:32.5]} 7. Ne5 {[%clk 0:02:43.6]} 7... Nc6 {[%clk 0:02:25.9]} 8. Bd3 {[%clk
0:02:36.3]} 8... h6 {[%clk 0:02:12.4]} 9. Qf3 {[%clk 0:02:22.1]} 9... Bxe5
{[%clk 0:01:44.6]} 10. dxe5 {[%clk 0:02:16.3]} 10... Nd7 {[%clk 0:01:43.6]} 11.
Qg3 {[%clk 0:02:14.7]} 11... Kh8 {[%clk 0:01:39.5]} 12. h4 {[%clk 0:02:14.2]}
12... Nc5 {[%clk 0:01:04.6]} 13. O-O-O {[%clk 0:02:03.9]} 13... b5 {[%clk
0:00:56.3]} 14. Ne2 {[%clk 0:01:58]} 14... b4 {[%clk 0:00:55.5]} 15. Nd4 {[%clk
0:01:48.8]} 15... Nxd4 {[%clk 0:00:55.7]} 16. exd4 {[%clk 0:01:49]} 16... bxa3
{[%clk 0:00:55.5]} 17. dxc5 {[%clk 0:01:46.1]} 17... a2 {[%clk 0:00:40.9]} 18.
Kd2 {[%clk 0:01:44]} 18... c6 {[%clk 0:00:37.8]} 19. b4 {[%clk 0:01:18.7]} 19...
a5 {[%clk 0:00:35.8]} 20. c3 {[%clk 0:01:12.6]} 20... axb4 {[%clk 0:00:35.3]}
21. cxb4 {[%clk 0:01:13.5]} 21... Ba6 {[%clk 0:00:30.3]} 22. Ra1 {[%clk
0:01:09.4]} 22... Bxd3 {[%clk 0:00:28.8]} 23. Qxd3 {[%clk 0:01:10.3]} 23... Qb8
{[%clk 0:00:27.1]} 24. Qb3 {[%clk 0:00:56.4]} 24... Qb5 {[%clk 0:00:22.1]} 25.
Be3 {[%clk 0:00:16.6]} 25... Ra4 {[%clk 0:00:19.7]} 26. Rxa2 {[%clk 0:00:16.9]}
26... Rxb4 {[%clk 0:00:20.1]} 27. Qd3 {[%clk 0:00:11.8]} 27... d4 {[%clk
0:00:15.2]} 28. Bf4 {[%clk 0:00:09.2]} 28... Qxc5 {[%clk 0:00:13.3]} 29. Rc1
{[%clk 0:00:09.5]} 29... Qd5 {[%clk 0:00:12.5]} 30. Rac2 {[%clk 0:00:06.9]}
30... Rb3 {[%clk 0:00:10.3]} 31. Qc4 {[%clk 0:00:03.1]} 31... Qxc4 {[%clk
0:00:04.3]} 32. Rxc4 {[%clk 0:00:04]} 32... Rfb8 {[%clk 0:00:02.4]} 33. Rxc6
{[%clk 0:00:03.9]} 33... Rb2+ {[%clk 0:00:02.5]} 34. R1c2 {[%clk 0:00:04.2]}
34... R2b3 {[%clk 0:00:01.1]} 35. Rc8+ {[%clk 0:00:04]} 35... Rxc8 {[%clk
0:00:01.2]} 36. Rxc8+ {[%clk 0:00:04.9]} 36... Kh7 {[%clk 0:00:01.8]} 37. Rc7
{[%clk 0:00:05.3]} 37... Kg6 {[%clk 0:00:02.2]} 38. g3 {[%clk 0:00:05]} 38... h5
{[%clk 0:00:02.7]} 39. Rc4 {[%clk 0:00:04.9]} 39... d3 {[%clk 0:00:02.1]} 40.
Be3 {[%clk 0:00:03.3]} 40... Kf5 {[%clk 0:00:02.3]} 41. Rd4 {[%clk 0:00:03.1]}
41... Kxe5 {[%clk 0:00:02.4]} 42. Rxd3 {[%clk 0:00:02.9]} 42... Rb2+ {[%clk
0:00:02.5]} 43. Ke1 {[%clk 0:00:03.5]} 43... Ke4 {[%clk 0:00:02.5]} 44. Rd4+
{[%clk 0:00:03.8]} 44... Kf5 {[%clk 0:00:01.1]} 45. Rf4+ {[%clk 0:00:04.7]}
45... Kg6 {[%clk 0:00:01.5]} 46. Kf1 {[%clk 0:00:05.2]} 46... f5 {[%clk
0:00:02.2]} 47. Kg2 {[%clk 0:00:05.1]} 47... e5 {[%clk 0:00:02.8]} 48. Rc4
{[%clk 0:00:05.5]} 48... Kf6 {[%clk 0:00:03.4]} 49. Rc6+ {[%clk 0:00:05.8]}
49... Kf7 {[%clk 0:00:03.8]} 50. Rc5 {[%clk 0:00:06.2]} 50... g6 {[%clk
0:00:04.3]} 51. Bg5 {[%clk 0:00:06.8]} 51... e4 {[%clk 0:00:04.4]} 52. Rc7+
{[%clk 0:00:06.7]} 52... Ke6 {[%clk 0:00:04.2]} 53. Rg7 {[%clk 0:00:06.9]} 53...
Ke5 {[%clk 0:00:03.5]} 54. Rxg6 {[%clk 0:00:07]} 54... Kd4 {[%clk 0:00:04]} 55.
Bf6+ {[%clk 0:00:06.6]} 55... Kd5 {[%clk 0:00:03.9]} 56. Bxb2 {[%clk 0:00:07.5]}
1-0

[Event "Late-Titled-Tuesday-Blitz-July-09-2024"]
[Site "Chess.com"]
[Date "2024.07.09"]
[Round "1"]
[White "LUISMIGUELOV"]
[Black "Hattori-Hanzo78"]
[Result "0-1"]
[WhiteElo "2187"]
[BlackElo "2580"]
[TimeControl "180+1"]
[EndTime "14:08:04 PDT"]
[Termination "Hattori-Hanzo78 won on time"]

1. e4 {[%clk 0:02:58.7]} 1... g6 {[%clk 0:02:54.4]} 2. Nf3 {[%clk 0:02:57.2]}
2... Bg7 {[%clk 0:02:54.8]} 3. d4 {[%clk 0:02:56.1]} 3... d6 {[%clk 0:02:54.9]}
4. c3 {[%clk 0:02:55.8]} 4... Nf6 {[%clk 0:02:55.3]} 5. Bd3 {[%clk 0:02:54.7]}
5... O-O {[%clk 0:02:55.7]} 6. Bg5 {[%clk 0:02:54.2]} 6... Nbd7 {[%clk
0:02:55.5]} 7. Nbd2 {[%clk 0:02:53]} 7... e5 {[%clk 0:02:50.7]} 8. d5 {[%clk
0:02:52.6]} 8... a5 {[%clk 0:02:47.8]} 9. a4 {[%clk 0:02:51.1]} 9... h6 {[%clk
0:02:46.5]} 10. Bh4 {[%clk 0:02:49.5]} 10... c6 {[%clk 0:02:38.5]} 11. dxc6
{[%clk 0:02:45.2]} 11... bxc6 {[%clk 0:02:39]} 12. Qe2 {[%clk 0:02:43.3]} 12...
Nc5 {[%clk 0:02:37.4]} 13. Bxf6 {[%clk 0:02:21.2]} 13... Bxf6 {[%clk 0:02:34.6]}
14. Bc4 {[%clk 0:02:15.6]} 14... Rb8 {[%clk 0:02:33.1]} 15. Ra2 {[%clk
0:01:54.2]} 15... d5 {[%clk 0:02:29.6]} 16. exd5 {[%clk 0:01:52.4]} 16... cxd5
{[%clk 0:02:30.5]} 17. Bb5 {[%clk 0:01:51.2]} 17... Qc7 {[%clk 0:02:11.9]} 18.
O-O {[%clk 0:01:49.8]} 18... Bd7 {[%clk 0:02:06]} 19. Bxd7 {[%clk 0:01:45.9]}
19... Nxd7 {[%clk 0:02:06.9]} 20. h3 {[%clk 0:01:41.1]} 20... Kg7 {[%clk
0:02:01.9]} 21. Re1 {[%clk 0:01:37.4]} 21... Rfe8 {[%clk 0:02:00.1]} 22. Nf1
{[%clk 0:01:36.6]} 22... Nc5 {[%clk 0:01:59]} 23. Ne3 {[%clk 0:01:24.9]} 23...
Qc6 {[%clk 0:01:52.8]} 24. Rd1 {[%clk 0:01:16]} 24... Rbd8 {[%clk 0:01:44.4]}
25. Qb5 {[%clk 0:01:15]} 25... Qxb5 {[%clk 0:01:37.6]} 26. axb5 {[%clk
0:01:14.5]} 26... d4 {[%clk 0:01:38.5]} 27. cxd4 {[%clk 0:01:13]} 27... exd4
{[%clk 0:01:39.3]} 28. Nc4 {[%clk 0:01:12.1]} 28... a4 {[%clk 0:01:36.9]} 29. b6
{[%clk 0:01:09.6]} 29... d3 {[%clk 0:01:35.6]} 30. Nfd2 {[%clk 0:01:04.7]} 30...
Rd7 {[%clk 0:01:31.5]} 31. Kf1 {[%clk 0:01:03.7]} 31... Bd4 {[%clk 0:01:16.8]}
32. Raa1 {[%clk 0:00:45.2]} 32... Re2 {[%clk 0:01:13.9]} 33. Ne3 {[%clk
0:00:35.5]} 33... Bxe3 {[%clk 0:01:03]} 34. fxe3 {[%clk 0:00:35.2]} 34... Rxe3
{[%clk 0:00:55]} 35. Nc4 {[%clk 0:00:34.7]} 35... Re4 {[%clk 0:00:51.3]} 36.
Rac1 {[%clk 0:00:33]} 36... Rdd4 {[%clk 0:00:37.3]} 37. Nd2 {[%clk 0:00:32.2]}
37... Rf4+ {[%clk 0:00:37.1]} 38. Kg1 {[%clk 0:00:30.4]} 38... Ne6 {[%clk
0:00:33.9]} 39. b7 {[%clk 0:00:29]} 39... Rb4 {[%clk 0:00:34]} 40. Ra1 {[%clk
0:00:24]} 40... Rxb7 {[%clk 0:00:33.3]} 41. Nf3 {[%clk 0:00:21.2]} 41... Nc5
{[%clk 0:00:31.6]} 42. Ra3 {[%clk 0:00:19.3]} 42... Rxb2 {[%clk 0:00:30.9]} 43.
Ne5 {[%clk 0:00:18.2]} 43... Rb3 {[%clk 0:00:27.1]} 44. Rxb3 {[%clk 0:00:16.7]}
44... axb3 {[%clk 0:00:27.6]} 45. Nxd3 {[%clk 0:00:16.5]} 45... Rd4 {[%clk
0:00:28.2]} 46. Nb2 {[%clk 0:00:15.3]} 46... Rxd1+ {[%clk 0:00:21.6]} 47. Nxd1
{[%clk 0:00:14.9]} 47... Na4 {[%clk 0:00:22.5]} 48. Kf2 {[%clk 0:00:11.8]} 48...
b2 {[%clk 0:00:23]} 49. Nxb2 {[%clk 0:00:10.8]} 49... Nxb2 {[%clk 0:00:23.9]}
50. Kf3 {[%clk 0:00:10.6]} 50... Nc4 {[%clk 0:00:24.8]} 51. Kg4 {[%clk
0:00:09.2]} 51... f5+ {[%clk 0:00:23.4]} 52. Kf4 {[%clk 0:00:08.1]} 52... Kf6
{[%clk 0:00:23.5]} 53. g4 {[%clk 0:00:07.9]} 53... fxg4 {[%clk 0:00:23.8]} 54.
hxg4 {[%clk 0:00:06.1]} 54... g5+ {[%clk 0:00:23.8]} 55. Ke4 {[%clk 0:00:04.3]}
55... Ne5 {[%clk 0:00:24]} 0-1